Cogmind - Beta 13 *** ADVENTURER MODE // 2024.07.29 @ 14:53:13 Player: VivI Result: Destroyed by Y-54 Guardian with Flak Gun Performance ------------- Evolutions (1) 500 Regions Visited (5) 1000 Robots Destroyed (46) 230 Value Destroyed (1340) 1340 Prototype IDs (7) 140 Alien Tech Used (0) 0 Bonus (237) 237 TOTAL SCORE: 3447 Bonus ------- High Alert Combat Kills 39 Follower Combat Kills 198 Cogmind --------- Core Integrity 0/400 Matter 233/300 Energy 100/100 System Corruption 0% Temperature Cool (12) Movement Rolling (125) Ox3 Location -6/Proximity Caves Parts ------- > --- POWER (1) -------- (None) > --- PROPULSION (2) --- Enhanced Flexi-carbon Leg Wheel > --- UTILITY (4) ------ Trap Extractor (4/4 Dirty Bomb) Hacking Drone Bay (1/1) Bomb Factory No. 2 > --- WEAPON (2) ------- Heavy Particle Cannon > --- INVENTORY (5) ---- Ion Engine Advanced Heat Sink Advanced Energy Well (500) Layered Medium Armor Plating Layered Medium Armor Plating Peak State ------------ > --- POWER ------------ Light Angular Momentum Engine > --- PROPULSION ------- Enhanced Flexi-carbon Leg Wheel > --- UTILITY ---------- Trap Extractor Hacking Drone Bay Bomb Factory No. 2 > --- WEAPON ----------- Heavy Particle Cannon Rocket Launcher > --- INVENTORY -------- Ion Engine Advanced Heat Sink Advanced Energy Well Layered Medium Armor Plating Layered Medium Armor Plating [Rating: 43] Favorites ----------- Power Ion Engine Engine Ion Engine Propulsion Wheel Leg Enhanced Flexi-carbon Leg Wheel Wheel Utility Trap Extractor Device Trap Extractor Storage Large Storage Unit Processor Improved Targeting Computer Protection Weapon Shielding Weapon Improved Assault Rifle Energy Gun Medium Laser Energy Cannon Heavy Particle Cannon Ballistic Gun Improved Assault Rifle Launcher Rocket Launcher Special Weapon Enhanced Flamer Build | -11 -10 -9 -9 -7 -6 ------- Run | Yrd Mat Mat Min Zio Pro Slots Evolved 2 | . . 2 . . . Power . | . . . . . . Propulsion . | . . . . . . Utility 2 | . . 2 . . . Weapon . | . . . . . . Parts Attached 37 | 6 4 17 1 3 6 Power 5 | 1 1 2 . . 1 Engine 5 | 1 1 2 . . 1 Core . | . . . . . . Reactor . | . . . . . . Propulsion 7 | 2 1 3 . . 1 Treads . | . . . . . . Leg 1 | . . . . . 1 Wheel 6 | 2 1 3 . . . Hover . | . . . . . . Flight . | . . . . . . Utility 13 | 1 2 6 . 2 2 Device 8 | . 1 4 . 2 1 Storage 3 | 1 1 . . . 1 Processor 1 | . . 1 . . . Hackware . | . . . . . . Protection 1 | . . 1 . . . Artifact . | . . . . . . Weapon 12 | 2 . 6 1 1 2 Energy Gun 2 | 1 . 1 . . . Energy Cannon 2 | . . 1 . . 1 Ballistic Gun 5 | 1 . 4 . . . Ballistic Cannon . | . . . . . . Launcher 2 | . . . 1 . 1 Special Weapon 1 | . . . . 1 . Impact Weapon . | . . . . . . Slashing Weapon . | . . . . . . Piercing Weapon . | . . . . . . Special Melee Weapon . | . . . . . . Unidentified Prototypes 7 | . . 3 . 1 3 Parts Lost 13 | . 1 8 . . 4 Power 3 | . . 2 . . 1 Propulsion 5 | . 1 3 . . 1 Utility 3 | . . 3 . . . Weapon 2 | . . . . . 2 Highest Loss Streak 4 | . 1 4 . . 2 To Critical Strikes . | . . . . . . Average Slot Usage (%) 87 | . 98 80 99 88 83 Engine 10 | . 14 8 11 11 7 Leg 1 | . . . . . 6 Wheel 19 | . 27 12 22 22 14 Device 24 | . 13 15 33 26 27 Storage 9 | . 14 11 11 11 5 Processor 1 | . . 6 . . . Energy Gun 2 | . 14 3 . . . Energy Cannon 2 | . . 4 . . 5 Ballistic Gun 11 | . 14 13 18 11 5 Launcher 4 | . . . 3 5 7 Special Weapon 1 | . . . . . 3 Naked Turns . | . . . . . . Heaviest Build 68 | 11 29 37 37 64 68 Greatest Support 32 | 32 32 32 20 20 28 Greatest Overweight (x) 10 | . . 10 1 3 6 Average Overweight (x) 1 | . . 1 1 1 3 Largest Inventory Capacity 15 | 8 15 15 15 15 15 Average Capacity 12 | 6 11 15 15 15 8 Most Carried 15 | 5 8 11 10 15 15 Average Carried 9 | . 4 8 9 12 8 Final Capacity 15 | 8 15 15 15 15 5 Final Carried 15 | . 8 9 9 15 5 Class Distribution -------------------- 67% | Mutant 32% | Scavenger-Mutant Dominant Class ---------------- Mutant | -10/Materials Mutant | -9/Materials Scavenger-Mutant | -9/Mines Mutant | -7/Zion Mutant | -6/Proximity Caves Resources | -11 -10 -9 -9 -7 -6 ----------- Run | Yrd Mat Mat Min Zio Pro Matter Collected 1418 | 231 94 381 . 42 670 Remotely 175 | . . 175 . . . Salvage Created 1558 | . 269 997 . . 292 Parts 96 | . 16 77 . . 3 Haulers Intercepted 3 | . 1 2 . . . Recyclers Shooed . | . . . . . . Parts Field Recycled . | . . . . . . Retrieved Matter . | . . . . . . Parts Self-Destructed 16 | . . . . . 16 Prevented . | . . . . . . Kills | -11 -10 -9 -9 -7 -6 ------- Run | Yrd Mat Mat Min Zio Pro Combat Hostiles Destroyed 36 | . 4 23 . . 9 Guns 24 | . 4 19 . . 1 Cannons 4 | . . 3 . . 1 AOE 7 | . . . . . 7 Classes Destroyed 7 | . 3 3 . . 1 Builder 1 | . . 1 . . . Hauler 3 | . 1 2 . . . Drone 1 | . . . . . 1 Watcher 6 | . 2 4 . . . Swarmer 7 | . . 7 . . . Grunt 26 | . 4 14 . . 8 Sentry 2 | . . 2 . . . Best Kill Streak 19 | . 3 19 . . 4 Combat Bots Only 8 | . 2 8 . . 4 Max Kills in Single Turn 2 | . 1 2 . . 2 Gunslinging 1 | . . 1 . . . Exploded 2 | . . . . . 2 Melee . | . . . . . . Uniques/NPCs Destroyed . | . . . . . . Combat | -11 -10 -9 -9 -7 -6 -------- Run | Yrd Mat Mat Min Zio Pro Hostile Shots Fired 250 | . 20 136 . . 94 Missed 75 | . 3 36 . . 36 Damage Taken 1705 | . 144 818 5 . 738 Core 442 | . 41 260 . . 141 Absorbed by Shields . | . . . . . . Redirected to Shielding 50 | . . 50 . . . Ignored by Resistances 514 | . 49 255 . . 210 Core Remaining (%) 91 | 100 83 . . . . Volleys Fired 113 | . 27 61 . . 25 Largest 2 | . 2 2 . . 2 Hottest 108 | . 70 91 . . 108 Shots Fired 215 | . 54 116 . . 45 Gun 164 | . 54 93 . . 17 Cannon 31 | . . 23 . . 8 Launcher 16 | . . . . . 16 Special 4 | . . . . . 4 Kinetic 123 | . 27 79 . . 17 Thermal 76 | . 27 37 . . 12 Explosive 16 | . . . . . 16 Electromagnetic . | . . . . . . Robot Hit Streak 29 | . 15 29 . . 15 Robot Miss Streak 2 | . 2 1 . . 2 Penetration Max . | . . . . . . Secondary Targets 6 | . . 6 . . . Max Gunslinging Chain 1 | . . 1 . . . Shots Hit Robots 164 | . 41 91 . . 32 Core Hits 83 | . 14 40 . . 29 Critical Kills 1 | . . 1 . . . Critical Parts Destroyed 3 | . 1 2 . . . Critical Strikes 4 | . 1 3 . . . Meltdown 1 | . . 1 . . . Destroy 3 | . 1 2 . . . Melee Attacks . | . . . . . . Impact . | . . . . . . Slashing . | . . . . . . Piercing . | . . . . . . Sneak Attacks . | . . . . . . Combat Hostiles . | . . . . . . Follow-up Attacks . | . . . . . . Damage Inflicted 2946 | . 364 1294 10 . 1278 Guns 1546 | . 364 989 . . 193 Cannons 480 | . . 305 . . 175 Explosions 865 | . . . . . 865 Melee . | . . . . . . Ramming 10 | . . . 10 . . Kinetic 1171 | . 124 854 . . 193 Thermal 900 | . 240 440 . . 220 Explosive 865 | . . . . . 865 Electromagnetic . | . . . . . . Impact . | . . . . . . Slashing . | . . . . . . Piercing . | . . . . . . Highest Corruption . | . . . . . . Average Corruption . | . . . . . . Corruption Purged . | . . . . . . Corruption Blocked . | . . . . . . Overload Shots . | . . . . . . Overflow Damage 6 | . . . . . 6 Projectiles . | . . . . . . Explosions 6 | . . . . . 6 Melee . | . . . . . . Knockbacks . | . . . . . . Impact . | . . . . . . Kinetic . | . . . . . . Secondary . | . . . . . . Self-Inflicted Damage 11 | . . . 5 . 6 Shots 1 | . . . . . 1 Rammed 1 | . . . 1 . . Targets Rammed 1 | . . . 1 . . Kicked . | . . . . . . Crushed . | . . . . . . Highest Temperature 367 | . 188 367 . . 254 Average Temperature 98 | . 70 93 . . 138 Received Heat Transfer 930 | . 102 435 . . 393 Effects 1 | . . . . . 1 Interference 1 | . . . . . 1 Siege Activations . | . . . . . . Robots Corrupted . | . . . . . . Combat Hostiles . | . . . . . . Parts Fried . | . . . . . . Impact Corruptions . | . . . . . . Robots Melted 1 | . . 1 . . . Combat Hostiles 1 | . . 1 . . . Parts Melted 3 | . . 3 . . . Heat Transferred 2244 | . 703 962 . . 579 Parts Sabotaged . | . . . . . . Parts Stolen . | . . . . . . Parts Stripped . | . . . . . . Power Chain Reactions . | . . . . . . Alert | -11 -10 -9 -9 -7 -6 ------- Run | Yrd Mat Mat Min Zio Pro Peak Influence 488 | . 145 488 119 . . Initial 119 | . . . 119 . . Average 168 | . 97 251 119 . . Maximum Alert Level 2 | . . 2 . . . Low Security (%) 71 | 100 100 35 100 . . Level 1 23 | . . 51 . . . Level 2 5 | . . 12 . . . Level 3 . | . . . . . . Level 4 . | . . . . . . Level 5 . | . . . . . . High Security . | . . . . . . Max Security . | . . . . . . Squads Dispatched 6 | . 2 4 . . . Investigation 3 | . 2 1 . . . Extermination . | . . . . . . Reinforcement 3 | . . 3 . . . Assault . | . . . . . . Garrison . | . . . . . . Intercept . | . . . . . . Searches Triggered . | . . . . . . Construction Impeded . | . . . . . . Haulers Reinforced . | . . . . . . Active Scanning Responses . | . . . . . . Cargo Convoy Interrupts . | . . . . . . Stealth | -11 -10 -9 -9 -7 -6 --------- Run | Yrd Mat Mat Min Zio Pro Distress Signals 4 | . . 4 . . . Communications Jammed . | . . . . . . Distress Signals . | . . . . . . Times Spotted 55 | . 7 34 . . 14 Peak Tracking Total 6 | . 3 6 . . 4 Tactical Retreats . | . . . . . . Traps | -11 -10 -9 -9 -7 -6 ------- Run | Yrd Mat Mat Min Zio Pro Traps Triggered 1 | . . 1 . . . Indirectly . | . . . . . . Trap Hack Attempts . | . . . . . . Triggered . | . . . . . . Disarmed . | . . . . . . Reprogrammed . | . . . . . . Reused . | . . . . . . Traps Extracted 4 | . . . . 3 1 Installed 4 | . . . . 3 1 Triggered . | . . . . . . Fabricated Traps 9 | . . . . 5 4 Most Traps Carried 5 | . . . . 5 5 Machines | -11 -10 -9 -9 -7 -6 ---------- Run | Yrd Mat Mat Min Zio Pro Machines Disabled . | . . . . . . Max in Single Turn . | . . . . . . Machines Repaired . | . . . . . . Machines Dismantled . | . . . . . . Machines Sabotaged . | . . . . . . Overloaded Fab Kills . | . . . . . . Hacking | -11 -10 -9 -9 -7 -6 --------- Run | Yrd Mat Mat Min Zio Pro Machines Accessed 5 | . 4 1 . . . Terminals 3 | . 3 . . . . Fabricators . | . . . . . . Repair Stations . | . . . . . . Recycling Units 2 | . 1 1 . . . Scanalyzers . | . . . . . . Garrison Access . | . . . . . . Total Hacks 13 | . 11 2 . . . Successful 9 | . 7 2 . . . Failed 4 | . 4 . . . . Catastrophic . | . . . . . . Database Lockouts . | . . . . . . Manual 2 | . . . . 2 . Terminals 9 | . 9 . . . . Fabricators . | . . . . . . Repair Stations . | . . . . . . Recycling Units 4 | . 2 2 . . . Scanalyzers . | . . . . . . Garrison Access . | . . . . . . Terminal Hacks 5 | . 5 . . . . Record 2 | . 2 . . . . Locate Traps 1 | . 1 . . . . Zone Layout 2 | . 2 . . . . Fabricator Hacks . | . . . . . . Repair Station Hacks . | . . . . . . Recycling Unit Hacks 4 | . 2 2 . . . Report Inventory 2 | . 1 1 . . . Retrieve Components 2 | . 1 1 . . . Scanalyzer . | . . . . . . Garrison Access Hacks . | . . . . . . Unauthorized Hacks . | . . . . . . Terminals . | . . . . . . Fabricators . | . . . . . . Repair Stations . | . . . . . . Recycling Units . | . . . . . . Scanalyzers . | . . . . . . Garrison Access . | . . . . . . Data Cores Recovered . | . . . . . . Used . | . . . . . . Hacking Detections 3 | . 3 . . . . Full Trace Events 2 | . 2 . . . . Feedback Events . | . . . . . . Feedback Blocked . | . . . . . . Robot Schematics Acquired . | . . . . . . Robots Built . | . . . . . . Authchips . | . . . . . . Time . | . . . . . . Total Robot Build Rating . | . . . . . . Part Schematics Acquired . | . . . . . . Parts Built . | . . . . . . Authchips . | . . . . . . Time . | . . . . . . Total Part Build Rating . | . . . . . . Parts Repaired . | . . . . . . Time . | . . . . . . Parts Recycled . | . . . . . . Recycled Matter . | . . . . . . Retrieved Matter . | . . . . . . Retrieved Components 18 | . 9 9 . . . Parts Scanalyzed . | . . . . . . Part Schematics Acquired . | . . . . . . Parts Damaged . | . . . . . . Bothacking | -11 -10 -9 -9 -7 -6 ------------ Run | Yrd Mat Mat Min Zio Pro Used RIF Installer . | . . . . . . Robots Hacked . | . . . . . . Non-combat . | . . . . . . Combat . | . . . . . . Robot Hacks Applied . | . . . . . . Relay Couplers Released . | . . . . . . Fabnet Peak Effective % . | . . . . . . Robots Rewired . | . . . . . . Allies Hacked . | . . . . . . Hacks Repelled . | . . . . . . Allies | -11 -10 -9 -9 -7 -6 -------- Run | Yrd Mat Mat Min Zio Pro Total Allies 2 | . . . . 2 . Largest Group 2 | . . . . 2 2 Highest-Rated Group 192 | . . . . 192 192 Highest-Rated Ally 96 | . . . . 96 96 Total Orders . | . . . . . . Ally Attacks 26 | . . . . . 26 Total Damage 1216 | . . . . . 1216 Kills 6 | . . . . . 6 Allies Corrupted . | . . . . . . Allies Melted . | . . . . . . Intel | -11 -10 -9 -9 -7 -6 ------- Run | Yrd Mat Mat Min Zio Pro Robot Analysis Total . | . . . . . . Derelict Logs Recovered 4 | . . . 2 1 1 Drone Launches . | . . . . . . Drone Recoveries . | . . . . . . Exploration | -11 -10 -9 -9 -7 -6 ------------- Run | Yrd Mat Mat Min Zio Pro Turns Passed 4053 | 48 405 662 349 1567 1022 Spaces Moved 2546 | 45 275 343 335 1046 502 Core 32 | 15 . 17 . . . Treads . | . . . . . . Legs 53 | . . . . . 53 Wheels 2461 | 30 275 326 335 1046 449 Hover . | . . . . . . Flight . | . . . . . . Fastest Speed 50 | 50 100 95 95 95 125 Average Speed 113 | 83 100 126 95 104 143 Slowest Speed 550 | 100 100 550 95 125 190 Overloaded Moves . | . . . . . . Propulsion Burnouts . | . . . . . . Robots Hopped . | . . . . . . Cave-ins Triggered . | . . . . . . Exploration Rate (%) 47 | 4 39 36 74 76 58 Regions Visited 5 Branch Regions 3 Pre-discovered Areas 2 | . . . 2 . . Known Exits Taken . | . . . . . . Unknown Exits Taken 5 | 1 1 1 1 1 . Scrap Searched 1 | . . . . 1 . Spaces Dug . | . . . . . . Terrain Destroyed 78 | . . . . . 78 Melee . | . . . . . . Projectile . | . . . . . . AOE 78 | . . . . . 78 Terrain Rammed . | . . . . . . Walls Destroyed . | . . . . . . Machines Disabled . | . . . . . . Actions | -11 -10 -9 -9 -7 -6 --------- Run | Yrd Mat Mat Min Zio Pro Total 3524 | 55 356 463 366 1521 763 Wait 744 | . 39 18 28 455 204 Move 2541 | 44 274 342 334 1045 502 Hop . | . . . . . . Pick Up 50 | 5 11 18 1 7 8 Fast Attach 4 | 1 . . . 1 2 Attach 31 | 5 3 17 1 2 3 Detach . | . . . . . . Swap 2 | . 1 . . . 1 Drop 34 | . 1 7 1 8 17 Fire 113 | . 27 61 . . 25 Melee . | . . . . . . Ram 1 | . . . 1 . . Kick . | . . . . . . Crush . | . . . . . . Escape Stasis . | . . . . . . Rewire . | . . . . . . Trap 4 | . . . . 3 1 Miscellaneous . | . . . . . . Route ------- -11/Scrapyard -10/Materials -9/Materials -9/Mines (discovered 2 exits: [*Exi] / *Zio) -7/Zion -6/Proximity Caves History --------- Turn | Location | Event 24 | -11/Scrapyard | Discovered new exit (range 15) 49 | -11/Scrapyard | Entered Materials 310 | -10/Materials | Build established: Mutant 435 | -10/Materials | Discovered new exit (range 13) 454 | -10/Materials | Entered another Materials area 454 | -9/Materials | Evolved 2 slots: Utility x2 633 | -9/Materials | Lost 3 parts (2n1u) 635 | -9/Materials | Destroyed 7 combat bots 774 | -9/Materials | Core integrity fell below 50% 822 | -9/Materials | Destroyed 8 combat bots 829 | -9/Materials | Lost 4 parts (1p1n2u) 1076 | -9/Materials | Discovered new exit (range 8) 1116 | -9/Materials | Entered Mines 1138 | -9/Mines | Deemed a non-threat by the Exiles lab entrance 1138 | -9/Mines | Discovered new exit (range 5) 1187 | -9/Mines | Learned location of Zion (-7) 1329 | -9/Mines | Build established: Scavenger-Mutant 1357 | -9/Mines | Received a Rocket Launcher from a helpful Derelict 1460 | -9/Mines | A Derelict revealed a hidden shortcut to a safe place 1465 | -9/Mines | Entered Zion 1781 | -7/Zion | Learned Factory terminal intel 2192 | -7/Zion | Found Prototype Device 2194 | -7/Zion | Identified Bomb Factory No. 2 2247 | -7/Zion | Warned about trapping Zion interior 2438 | -7/Zion | Given A8's code to call for help 2481 | -7/Zion | Build established: Mutant 2521 | -7/Zion | Enhanced Grunt warped into view, answering call for help 2523 | -7/Zion | Enhanced Grunt warped into view, answering call for help 2676 | -7/Zion | Given the Hacking Drone Bay 2678 | -7/Zion | Found Prototype Device 3013 | -7/Zion | Discovered new exit (range 15) 3032 | -7/Zion | Entered Proximity Caves 3032 | -6/Proximity Caves | Accompanied by 2 allies 3259 | -6/Proximity Caves | Spotter reported a threat 3313 | -6/Proximity Caves | Learned Factory security intel 3355 | -6/Proximity Caves | Core integrity fell below 20% 3470 | -6/Proximity Caves | Spotter reported a threat 3549 | -6/Proximity Caves | Identified Hacking Drone Bay 4013 | -6/Proximity Caves | Attracted the attention of an 0b10 checkpoint 4054 | -6/Proximity Caves | Destroyed by Y-54 Guardian with Flak Gun Last Messages --------------- 03852_ Acquired 5 matter. 03853_ Acquired 2 matter. 03858_ Acquired 5 matter. 03872_ Acquired 3 matter. 03876_ Acquired 5 matter. 03886_ Acquired 3 matter. 03887_ Acquired 5 matter. 03891_ Acquired 2 matter. 03893_ Acquired 3 matter. 03894_ Acquired 4 matter. 03900_ Acquired 1 matter. 03902_ Acquired 4 matter. 03905_ Acquired 1 matter. 03914_ Acquired 5 matter. 03937_ Acquired 3 matter. 03939_ Acquired 4 matter. 03964_ The unstable cave ceiling collapses. 04013_ Y-54 Guardian: "INTERCEPTING UNREGISTERED DERELICT." 04050_ Rocket Launcher destroyed. Map ----- +----------------------------------------------------+ | | | | | | | | | | | | | ?????????????????????????????????????????????????? | | ?????????????????????????????????????????????????? | | ?????????????????????????????????????????????????? | | ?????????????????????????????????????????????????? | | ?????????????????????????????????????????????????? | | ?????????????????????????????????????????????????? | | ?????????????????????????????????????????????????? | | ?????????????????????????????????????????????????? | | ?????????????????????????????????????????????????? | | ?????????????????????????????????????????????????? | | ?????????????????????????????????????????????????? | | ?????????????????????????????????????????????????? | | ?????????????????????????????????????????????????? | | ?????????????????????????????????????????????????? | | ???????????????????????####??????????????????????? | | ??????????????????????## ##????????????? #?????? | | ??????????????????????# ##??????????# ###??? | | ??????????????????????# #??????? #??? | | ???????????????????????# #????? ##?? | | ???????????????????????##@ #???# ##? | | ????????????????????????## ##??# #? | | ???????????????????????### #??# #? | | ??????????????????????## #??# ?? | | ?????????????????????"#" ##?# ?? | | ???????????????????#""" # #?# ??? | | ???????????????????## # #### ???? | | ????????????????????##" # ???? | | ????????????????????##### ????? | | ????????????????????# Y##### #????? | | ????????????????????# ###????## #????? | | ????????????????????### ##?????# #????? | | ??????????????????????## ####### #????? | | ???????????????????????# #????? | | ??????????????????????# ## ##????? | | ??????????????????????## ##?## ##????? | | ???????????????????????### ##??# ##???? | | ?????????????????????????###???## #???? | | ??????????????????????????????## ##??? | | ??????????????????????????????# #??? | | ?????????????????????????????# ## ##??? | | ?????????????????????????? ### ##???? | | ????????????????????????? ?## #????? | | ?????????????????????????? ### ###??? | | ?????????????????????????? ##?# ##?? | +----------------------------------------------------+ Best States ------------- Heat Dissipation 38 Energy Generation 18 Energy Capacity 650 Matter Stores 300 Matter Capacity 300 Sight Range 16 Robot Scan Range 14 Terrain Scan Density 10 Resistance: KI 20 Resistance: TH 20 Resistance: EX 20 Resistance: EM 20 Resistance: I 20 Resistance: S 20 Resistance: P 20 Weapon Shielding 33 Evasion (%) 50 Targeting Accuracy 6 Offensive Hacking 10 Trap Extractor Capacity 8 Item Schematics ----------------- None Robot Schematics ------------------ None Fabricated ------------ Nothing Alien Tech Used ----------------- None Achievements -------------- Help From High Places Robot Respite Use The Force Challenges ------------ None Game ------ Seed BlastCobblerMediator Manual? 0 Play Time 00:34:38 Cumulative 4.5 hours Start 2024.07.29 @ 13:31:26 End 2024.07.29 @ 14:53:13 Sessions 1 Manual Loads 0 Difficulty Adventurer Special Mode None Game No. 9 Rogue 0 Adventurer 9 Explorer 0 Win Type - Total 0 Types 0/0/0/0/0/0/0/0/0 Lore% 5 Gallery% 13 Achievement% 12 Wizard Run 0 Options --------- Layout 1 ASCII 0 Keyboard 0 Movement Mouse Keybinds 0 Fullscreen 1 Font 24/Proggy Map View 50x35 Zoom Use 0% Tactical HUD 1 Map Filters NONE Filters NONE Steam 1 RUN: 8c2a5dc1-991b-4e58-848a-30eaaeffeb3f